Cogmind - Beta 15 *** ADVENTURER MODE // 2025.05.11 @ 23:17:46 Player: Jack Result: Self-destructed Performance ------------- Evolutions (3) 1500 Regions Visited (9) 1800 Robots Destroyed (68) 340 Value Destroyed (2604) 2604 Prototype IDs (25) 500 Alien Tech Used (0) 0 Bonus (1491) 1491 TOTAL SCORE: 8235 Bonus ------- High Alert Combat Kills 241 Follower Combat Kills 250 Entered Garrisons 200 Used RIF Installer 500 Aligned with FarCom 300 Cogmind --------- Core Integrity 636/700 Matter 249/300 Energy 156/160 System Corruption 8% Temperature Cool (8) Movement Flying (28) Location -7/Factory Parts ------- > --- POWER (1) -------- Light Nuclear Core > --- PROPULSION (4) --- Flight Unit Xenon Bombardment Thruster Improved Cesium-ion Thruster Cooled VTOL Module > --- UTILITY (6) ------ Small Storage Unit Structural Scanner Improved Signal Interpreter Hacking Suite Relay Coupler [NC] (22) > --- WEAPON (2) ------- Improved Datajack Axe > --- INVENTORY (8) ---- Hacking Suite Hacking Suite Hacking Suite Relay Coupler [NC] (20) YOLO Cannon Great Axe Peak State ------------ > --- POWER ------------ Light Nuclear Core > --- PROPULSION ------- Flight Unit Xenon Bombardment Thruster Improved Cesium-ion Thruster Cooled VTOL Module > --- UTILITY ---------- Small Storage Unit Structural Scanner Improved Signal Interpreter Hacking Suite Authchip [Processor] Relay Coupler [NC] > --- WEAPON ----------- YOLO Cannon > --- INVENTORY -------- Light Nuclear Core Micro Nuclear Core Authchip [Processor] Relay Coupler [NC] Relay Coupler [NC] Axe [Rating: 52] Favorites ----------- Power Light Nuclear Core Engine Ion Engine Power Core Light Nuclear Core Propulsion Light Treads Treads Light Treads Leg Aluminum Leg Flight Unit Flight Unit Utility Small Storage Unit Device Improved Heat Sink Storage Small Storage Unit Processor Improved Signal Interpreter Hackware Relay Coupler [NC] Protection Light Armor Plating Weapon Beam Rifle Energy Gun Beam Rifle Energy Cannon Particle Cannon Ballistic Gun Assault Rifle Ballistic Cannon Battle Cannon Slashing Weapon Axe Special Melee Weapon Improved Datajack Build | -11 -10 -10 -10 -9 -8 -8 -7 -7 -7 ------- Run | Yrd Mat Min Exi Min Mat Gar Fac Was Fac Slots Evolved 6 | . . . . . 4 . 2 . . Power . | . . . . . . . . . . Propulsion 2 | . . . . . 2 . . . . Utility 4 | . . . . . 2 . 2 . . Weapon . | . . . . . . . . . . Parts Attached 55 | 6 1 . 1 2 3 22 17 . 3 Power 4 | 1 . . . . 1 1 1 . . Engine 2 | 1 . . . . 1 . . . . Core 2 | . . . . . . 1 1 . . Reactor . | . . . . . . . . . . Propulsion 20 | 2 . . . . . 11 7 . . Treads 8 | 2 . . . . . 6 . . . Leg 5 | . . . . . . 5 . . . Wheel . | . . . . . . . . . . Hover . | . . . . . . . . . . Flight 7 | . . . . . . . 7 . . Utility 17 | 1 . . 1 . 2 3 7 . 3 Device 3 | . . . . . 1 1 1 . . Storage 2 | 1 . . 1 . . . . . . Processor 1 | . . . . . . . 1 . . Hackware 8 | . . . . . . . 5 . 3 Protection 3 | . . . . . 1 2 . . . Artifact . | . . . . . . . . . . Weapon 14 | 2 1 . . 2 . 7 2 . . Energy Gun 5 | 1 1 . . . . 3 . . . Energy Cannon 3 | . . . . 2 . 1 . . . Ballistic Gun 2 | 1 . . . . . 1 . . . Ballistic Cannon 1 | . . . . . . 1 . . . Launcher . | . . . . . . . . . . Special Weapon . | . . . . . . . . . . Impact Weapon . | . . . . . . . . . . Slashing Weapon 1 | . . . . . . 1 . . . Piercing Weapon . | . . . . . . . . . . Special Melee Weapon 2 | . . . . . . . 2 . . Unidentified Prototypes 2 | . . . . . . . 2 . . Parts Lost 10 | . 1 . . . . 6 3 . . Power . | . . . . . . . . . . Propulsion 1 | . . . . . . 1 . . . Utility 6 | . . . . . . 4 2 . . Weapon 3 | . 1 . . . . 1 1 . . Highest Loss Streak 2 | . 1 . . . . 2 2 . . To Critical Strikes . | . . . . . . . . . . Average Backups 7 | . 4 7 8 8 8 8 4 6 5 Power . | . . . . . . . 1 . . Propulsion 3 | . 3 4 4 4 4 4 . . . Utility . | . . 1 . . . . 1 4 3 Weapon 2 | . . 1 3 4 4 3 1 2 2 Tool/Special . | . . . . . . . . . . Unused Backups 10 | . . 1 . 1 1 . 2 . 5 Power 1 | . . . . . . . 1 . . Propulsion 1 | . . 1 . . . . . . . Utility 4 | . . . . . . . . . 4 Weapon 4 | . . . . 1 1 . 1 . 1 Tool/Special . | . . . . . . . . . . Average Slot Usage (%) 88 | . 83 85 91 99 77 89 85 100 94 Engine 6 | . 14 14 14 14 9 4 . . . Core 3 | . . . . . . 4 7 7 7 Treads 16 | . 28 28 28 28 18 13 . . . Leg 9 | . . . . . . 18 . . . Flight 4 | . . . . . . . 29 30 30 Device 4 | . . . . . 6 5 6 7 7 Storage 16 | . 14 14 19 28 18 18 6 7 7 Processor 1 | . . . . . . . 6 7 7 Hackware 2 | . . . . . . . 14 23 17 Protection 3 | . . . . . 7 6 . . . Energy Gun 7 | . 12 14 14 3 . 9 . . . Energy Cannon 3 | . . . . 21 18 2 . . . Ballistic Gun 4 | . 14 14 14 3 . 3 . . . Slashing Weapon 2 | . . . . . . 3 6 7 7 Peak Build Rating 52 | 6 6 6 9 11 17 34 52 41 41 Average Rating 17 | 4 5 6 7 10 15 20 29 41 37 On Entrance 15 | . 6 6 6 9 11 17 22 41 41 Naked Turns . | . . . . . . . . . . Heaviest Build 45 | 14 14 14 24 27 35 45 29 15 15 Greatest Support 80 | 40 40 40 40 40 40 80 42 21 21 Greatest Overweight (x) 3 | 1 . . . . . 3 1 . . Average Overweight (x) . | . . . . . . . . . . Largest Inventory Capacity 10 | 8 8 8 10 10 10 10 10 8 8 Average Capacity 9 | 6 8 8 8 10 10 10 7 8 8 Most Carried 10 | 1 6 8 9 10 10 10 10 7 7 Average Carried 8 | . 4 7 8 9 9 9 5 7 6 Final Capacity 10 | 8 8 8 10 10 10 10 8 8 8 Final Carried 10 | 1 6 8 9 10 10 10 7 7 7 Class Distribution -------------------- 44% | Scavenger-Mutant 38% | Mutant 9% | Scavenger-Sprinter 5% | Hacker-Sprinter Dominant Class ---------------- Mutant | -10/Materials Mutant | -10/Mines Mutant | -10/Exiles Mutant | -9/Mines Mutant | -8/Materials Scavenger-Mutant | -8/Garrison Scavenger-Sprinter | -7/Factory Scavenger-Sprinter | -7/Waste Hacker-Sprinter | -7/Factory Resources | -11 -10 -10 -10 -9 -8 -8 -7 -7 -7 ----------- Run | Yrd Mat Min Exi Min Mat Gar Fac Was Fac Matter Collected 1145 | 141 102 73 . 99 30 495 205 . . Remotely . | . . . . . . . . . . Salvage Created 2366 | . 199 124 . 280 93 1336 334 . . Parts 156 | . 23 5 . 25 12 69 22 . . Haulers Intercepted . | . . . . . . . . . . Recyclers Shooed 1 | . . . . 1 . . . . . Parts Field Recycled . | . . . . . . . . . . Retrieved Matter . | . . . . . . . . . . Parts Self-Destructed . | . . . . . . . . . . Prevented . | . . . . . . . . . . Kills | -11 -10 -10 -10 -9 -8 -8 -7 -7 -7 ------- Run | Yrd Mat Min Exi Min Mat Gar Fac Was Fac Combat Hostiles Destroyed 61 | . 10 4 . 8 5 29 5 . . Melee 1 | . . . . . . . 1 . . Guns 34 | . 10 3 . 2 . 19 . . . Cannons 15 | . . . . 4 5 5 1 . . AOE 9 | . . 1 . 1 . 4 3 . . Classes Destroyed 11 | . 2 . . 2 1 2 4 . . Worker 1 | . . . . 1 . . . . . Builder 1 | . . . . . . . 1 . . Recycler 1 | . . . . . . . 1 . . Operator 2 | . . . . . . . 2 . . Watcher 1 | . . . . . . 1 . . . Swarmer 25 | . 9 2 . 3 4 6 1 . . Grunt 28 | . 1 2 . 4 . 18 3 . . Duelist 1 | . . . . 1 . . . . . Sentry 5 | . . . . . . 5 . . . Hunter 2 | . . . . . 1 1 . . . Programmer 1 | . . . . . . . 1 . . Best Kill Streak 7 | . 7 2 . 3 4 7 5 . . Combat Bots Only 7 | . 7 2 . 3 4 7 2 . . Max Kills in Single Turn 2 | . 2 1 . 2 1 2 2 . . Gunslinging 1 | . 1 . . . . 1 . . . Exploded 2 | . . 1 . 1 . 2 2 . . Melee 1 | . . . . . . . 1 . . Uniques/NPCs Destroyed . | . . . . . . . . . . Combat | -11 -10 -10 -10 -9 -8 -8 -7 -7 -7 -------- Run | Yrd Mat Min Exi Min Mat Gar Fac Was Fac Hostile Shots Fired 327 | . 44 25 . 37 16 174 31 . . Missed 81 | . 10 11 . 5 5 39 11 . . Hits 246 | . 34 14 . 32 11 135 20 . . Melee 1 | . . . . . . . 1 . . Projectile 245 | . 34 14 . 32 11 135 19 . . Critical Strikes 6 | . . . . 1 . 4 1 . . Damage Taken 2751 | . 270 126 . 278 77 1726 274 . . Core 375 | . 71 19 . 71 12 138 64 . . Absorbed by Shields . | . . . . . . . . . . Ignored by Resistances 801 | . 86 38 . 91 25 496 65 . . Regen/Repaired (Parts) 97 | . . . . . . . 97 . . Core Remaining (%) 69 | 100 . . . 35 . 72 . . . Volleys Fired 133 | . 17 11 . 23 6 73 3 . . Largest 2 | . 2 2 . 2 2 2 1 . . Hottest 128 | . 60 60 . 128 128 128 100 . . Shots Fired 252 | . 31 22 . 45 11 140 3 . . Gun 191 | . 31 22 . 24 . 114 . . . Cannon 61 | . . . . 21 11 26 3 . . Launcher . | . . . . . . . . . . Special . | . . . . . . . . . . Kinetic 86 | . 17 11 . 12 . 46 . . . Thermal 129 | . . . . 21 11 94 3 . . Explosive . | . . . . . . . . . . Electromagnetic 37 | . 14 11 . 12 . . . . . Robot Hit Streak 38 | . 10 10 . 7 14 38 2 . . Robot Miss Streak 3 | . 2 3 . 3 . 3 1 . . Penetration Max 1 | . . . . . . 1 . . . Secondary Targets 5 | . 2 . . . . 3 . . . Max Gunslinging Chain 1 | . 1 . . . . 1 . . . Shots Hit Robots 220 | . 21 17 . 30 7 121 19 2 3 Core Hits 97 | . 12 7 . 14 6 48 10 . . Critical Kills 2 | . . . . . . 2 . . . Critical Parts Destroyed 2 | . . . . . . 2 . . . Critical Strikes 13 | . . . . 1 . 11 1 . . Burn 7 | . . . . . . 7 . . . Destroy 4 | . . . . . . 4 . . . Corrupt 1 | . . . . 1 . . . . . Sever 1 | . . . . . . . 1 . . Melee Attacks 123 | . . . . . . 78 38 2 5 Impact . | . . . . . . . . . . Slashing 106 | . . . . . . 78 26 . 2 Piercing . | . . . . . . . . . . Sneak Attacks 11 | . . . . . . 1 5 2 3 Combat Hostiles 1 | . . . . . . . 1 . . Follow-up Attacks . | . . . . . . . . . . Damage Inflicted 5411 | . 272 264 . 486 128 3089 1172 . . Guns 2336 | . 272 221 . 223 . 1620 . . . Cannons 1458 | . . . . 229 128 812 289 . . Explosions 818 | . . 43 . 31 . 468 276 . . Melee 796 | . . . . . . 189 607 . . Ramming 3 | . . . . 3 . . . . . Kinetic 1101 | . 124 111 . 95 . 771 . . . Thermal 3011 | . . 43 . 260 128 2129 451 . . Explosive 114 | . . . . . . . 114 . . Electromagnetic 386 | . 148 110 . 128 . . . . . Impact . | . . . . . . . . . . Slashing 796 | . . . . . . 189 607 . . Piercing . | . . . . . . . . . . Highest Corruption 8 | . . . . . . 1 7 7 8 Average Corruption 2 | . . . . . . 1 4 7 7 Corruption Purged . | . . . . . . . . . . Corruption Blocked . | . . . . . . . . . . Effects 28 | . . . . . . 17 4 2 5 Message Errors 7 | . . . . . . 3 . 1 3 Matter Fused 10 | . . . . . . 8 . 1 1 Heat Flow Errors 4 | . . . . . . 3 1 . . Energy Discharges 2 | . . . . . . 1 1 . . Data Loss (minor) 4 | . . . . . . 2 2 . . Data Loss (major) 1 | . . . . . . . . . 1 Overload Shots . | . . . . . . . . . . Overflow Damage 293 | . . . . 1 . 182 110 . . Projectiles 125 | . . . . 1 . 124 . . . Explosions 58 | . . . . . . 58 . . . Melee 110 | . . . . . . . 110 . . Knockbacks . | . . . . . . . . . . Impact . | . . . . . . . . . . Kinetic . | . . . . . . . . . . Secondary . | . . . . . . . . . . Self-Inflicted Damage 17 | . . 4 . 13 . . . . . Shots 2 | . . 1 . 1 . . . . . Rammed 1 | . . . . 1 . . . . . Targets Rammed 1 | . . . . 1 . . . . . Kicked . | . . . . . . . . . . Crushed . | . . . . . . . . . . Highest Temperature 380 | . 48 57 . 314 108 380 176 . . Average Temperature 88 | . 27 34 . 96 49 100 56 . . Received Heat Transfer 1152 | . 114 66 . 162 . 756 54 . . Effects 1 | . . . . . . 1 . . . Shutdowns 1 | . . . . . . 1 . . . Siege Activations . | . . . . . . . . . . Martial Activations . | . . . . . . . . . . Shielding Activations . | . . . . . . . . . . Robots Disrupted . | . . . . . . . . . . Combat Hostiles . | . . . . . . . . . . Robots Corrupted . | . . . . . . . . . . Combat Hostiles . | . . . . . . . . . . Parts Fried 2 | . . 2 . . . . . . . Impact Corruptions . | . . . . . . . . . . Robots Melted 2 | . . . . 1 . 1 . . . Combat Hostiles 2 | . . . . 1 . 1 . . . Parts Melted 7 | . . 1 . . 1 5 . . . Heat Transferred 5376 | . . 50 . 494 259 4173 400 . . Parts Sabotaged . | . . . . . . . . . . Parts Stolen . | . . . . . . . . . . Parts Stripped . | . . . . . . . . . . Power Chain Reactions 2 | . . 1 . 1 . . . . . Alert | -11 -10 -10 -10 -9 -8 -8 -7 -7 -7 ------- Run | Yrd Mat Min Exi Min Mat Gar Fac Was Fac Maximum Alert Level 5 | . . . . . . 5 3 1 . Low Security (%) 41 | 100 100 100 . 100 100 12 . . 100 Level 1 4 | . . . . . . 6 . 100 . Level 2 21 | . . . . . . 40 5 . . Level 3 23 | . . . . . . 21 94 . . Level 4 9 | . . . . . . 18 . . . Level 5 . | . . . . . . . . . . High Security . | . . . . . . . . . . Max Security . | . . . . . . . . . . Peak Influence 1652 | . 190 72 . 170 107 1652 939 252 138 Initial 751 | . . . . . 42 20 751 252 136 Average 478 | . 58 24 . 51 53 703 787 239 106 Influence Increases 3335 | . 230 112 . 337 135 1972 533 . 16 Destroy 0b10 Robot/C 1440 | . 200 80 . 240 100 720 100 . . Destroy 0b10 Robot/NC 30 | . . . . 5 . 10 15 . . Destroy Leader 140 | . 30 10 . 40 20 20 20 . . Allied During Kill 27 | . . . . 12 7 8 . . . Successful Hack 47 | . . . . . 7 6 20 . 14 Select Force Hacks 30 | . . . . . . . 30 . . Disable Machine 27 | . . . . 18 . . 9 . . Anti-Garrison Action 1050 | . . . . . . 1050 . . . Destroy Structure 169 | . . 7 . 7 1 113 39 . 2 Partial Spotted 75 | . . . . . . . 75 . . Lose Combat Pursuer 300 | . . 15 . 15 . 45 225 . . Influence Decreases 3273 | . 230 112 . 207 228 357 1321 642 176 Entered New Map 1704 | . . . . . 88 17 901 612 86 Time Decay 1169 | . 220 112 . 187 140 . 390 30 90 Lost Part 100 | . 10 . . . . 60 30 . . Lost Ally 300 | . . . . 20 . 280 . . . Squads Dispatched 12 | . . . . . . . 11 . 1 Investigation 7 | . . . . . . . 6 . 1 Extermination 4 | . . . . . . . 4 . . Reinforcement 1 | . . . . . . . 1 . . Assault . | . . . . . . . . . . Garrison . | . . . . . . . . . . Intercept . | . . . . . . . . . . Searches Triggered . | . . . . . . . . . . Construction Impeded . | . . . . . . . . . . Haulers Reinforced . | . . . . . . . . . . Active Scanning Responses . | . . . . . . . . . . Cargo Convoy Interrupts . | . . . . . . . . . . Stealth | -11 -10 -10 -10 -9 -8 -8 -7 -7 -7 --------- Run | Yrd Mat Min Exi Min Mat Gar Fac Was Fac Distress Signals 5 | . 3 . . . . . 2 . . Communications Jammed . | . . . . . . . . . . Distress Signals . | . . . . . . . . . . Times Spotted 112 | . 17 5 . 12 5 42 27 3 1 Peak Tracking Total 10 | . 8 3 . 3 4 10 6 3 1 Tactical Retreats 14 | . . 1 . 1 . 2 10 . . Traps | -11 -10 -10 -10 -9 -8 -8 -7 -7 -7 ------- Run | Yrd Mat Min Exi Min Mat Gar Fac Was Fac Traps Triggered 10 | . 1 . . . . 4 5 . . Indirectly . | . . . . . . . . . . Trap Hack Attempts . | . . . . . . . . . . Triggered . | . . . . . . . . . . Disarmed . | . . . . . . . . . . Reprogrammed . | . . . . . . . . . . Reused . | . . . . . . . . . . Traps Extracted . | . . . . . . . . . . Installed . | . . . . . . . . . . Triggered . | . . . . . . . . . . Machines | -11 -10 -10 -10 -9 -8 -8 -7 -7 -7 ---------- Run | Yrd Mat Min Exi Min Mat Gar Fac Was Fac Machines Disabled 6 | . . . . 2 . 3 1 . . Max in Single Turn 1 | . . . . 1 . 1 1 . . Garrison Relay 3 | . . . . . . 3 . . . Machines Repaired . | . . . . . . . . . . Machines Dismantled . | . . . . . . . . . . Machines Sabotaged . | . . . . . . . . . . Overloaded Fab Kills . | . . . . . . . . . . Hacking | -11 -10 -10 -10 -9 -8 -8 -7 -7 -7 --------- Run | Yrd Mat Min Exi Min Mat Gar Fac Was Fac Machines Accessed 16 | . . . 1 . 2 1 10 . 2 Terminals 5 | . . . . . 1 1 2 . 1 Fabricators 6 | . . . . . . . 5 . 1 Repair Stations 1 | . . . . . . . 1 . . Recycling Units . | . . . . . . . . . . Scanalyzers . | . . . . . . . . . . Garrison Access 3 | . . . . . 1 . 2 . . Total Hacks 35 | . . . 1 . 2 2 18 . 12 Successful 28 | . . . 1 . 2 1 16 . 8 Failed 7 | . . . . . . 1 2 . 4 Catastrophic . | . . . . . . . . . . Database Lockouts . | . . . . . . . . . . Manual 13 | . . . 1 . 1 . 8 . 3 Terminals 8 | . . . . . 1 2 2 . 3 Fabricators 20 | . . . . . . . 11 . 9 Repair Stations 2 | . . . . . . . 2 . . Recycling Units . | . . . . . . . . . . Scanalyzers . | . . . . . . . . . . Garrison Access 4 | . . . . . 1 . 3 . . Terminal Hacks 5 | . . . 1 . 1 1 1 . 1 Part Schematic 1 | . . . . . 1 . . . . Open Door 1 | . . . . . . 1 . . . Fabricator Index 2 | . . . . . . . 1 . 1 Proto ID Catalog 1 | . . . 1 . . . . . . Fabricator Hacks 11 | . . . . . . . 5 . 6 Load Schematic 8 | . . . . . . . 5 . 3 Build 3 | . . . . . . . . . 3 Repair Station Hacks 2 | . . . . . . . 2 . . Scan Component 1 | . . . . . . . 1 . . Repair 1 | . . . . . . . 1 . . Recycling Unit Hacks . | . . . . . . . . . . Scanalyzer . | . . . . . . . . . . Garrison Access Hacks 3 | . . . . . 1 . 2 . . Unlock Access 1 | . . . . . 1 . . . . Coupler Status 2 | . . . . . . . 2 . . Unauthorized Hacks 7 | . . . . . . . 6 . 1 Terminals 1 | . . . . . . . 1 . . Assimilate 1 | . . . . . . . 1 . . Fabricators 5 | . . . . . . . 4 . 1 Prioritize 1 | . . . . . . . . . 1 Recompile 4 | . . . . . . . 4 . . Repair Stations . | . . . . . . . . . . Recycling Units . | . . . . . . . . . . Scanalyzers . | . . . . . . . . . . Garrison Access 1 | . . . . . . . 1 . . Eject 1 | . . . . . . . 1 . . Data Cores Recovered . | . . . . . . . . . . Used . | . . . . . . . . . . Hacking Detections 5 | . . . . . . 1 2 . 2 Full Trace Events 2 | . . . . . . . 1 . 1 Feedback Events 1 | . . . . . . . . . 1 Corruption 1 | . . . . . . . . . 1 Feedback Blocked . | . . . . . . . . . . Robot Schematics Acquired . | . . . . . . . . . . Robots Built . | . . . . . . . . . . Authchips . | . . . . . . . . . . Time . | . . . . . . . . . . Total Robot Build Rating . | . . . . . . . . . . Part Schematics Acquired 1 | . . . . . 1 . . . . Parts Built 3 | . . . . . . . . . 3 Authchips 3 | . . . . . . . . . 3 Time 108 | . . . . . . . . . 108 Total Part Build Rating 9 | . . . . . . . . . 9 Parts Repaired 1 | . . . . . . . 1 . . Time 26 | . . . . . . . 26 . . Parts Recycled . | . . . . . . . . . . Recycled Matter . | . . . . . . . . . . Retrieved Matter . | . . . . . . . . . . Retrieved Components . | . . . . . . . . . . Parts Scanalyzed . | . . . . . . . . . . Part Schematics Acquired . | . . . . . . . . . . Parts Damaged . | . . . . . . . . . . Bothacking | -11 -10 -10 -10 -9 -8 -8 -7 -7 -7 ------------ Run | Yrd Mat Min Exi Min Mat Gar Fac Was Fac Used RIF Installer 1 | . . . . . . 1 . . . Robots Hacked 8 | . . . . . . . 6 1 1 Non-combat 7 | . . . . . . . 6 . 1 Combat 1 | . . . . . . . . 1 . Robot Hacks Applied 9 | . . . . . . . 6 1 2 block_reporting 1 | . . . . . . . . . 1 recall_investigation 1 | . . . . . . . . . 1 overload_power 6 | . . . . . . . 6 . . formatsys_low 1 | . . . . . . . . 1 . Relay Couplers Released 15 | . . . . . . 12 3 . . Ejected 3 | . . . . . . . 3 . . Machine Destruction 12 | . . . . . . 12 . . . Attached 2 | . . . . . . . 1 . 1 Fabnet Peak Effective % . | . . . . . . . . . . Robots Rewired 13 | . . . . . . 13 . . . Allies Hacked . | . . . . . . . . . . Hacks Repelled . | . . . . . . . . . . Allies | -11 -10 -10 -10 -9 -8 -8 -7 -7 -7 -------- Run | Yrd Mat Min Exi Min Mat Gar Fac Was Fac Total Allies 18 | . . . . 3 . 13 1 1 . Largest Group 6 | . . . . 3 2 6 . 1 . Highest-Rated Group 120 | . . . . 40 32 120 . 32 . Highest-Rated Ally 39 | . . . . 16 16 39 . 32 . Total Orders 1 | . . . . . . . 1 . . STAY 1 | . . . . . . . 1 . . Ally Attacks 67 | . . . . 20 . 41 . 6 . Total Damage 1079 | . . . . 159 . 585 . 335 . Kills 11 | . . . . 4 . 7 . . . Allies Corrupted . | . . . . . . . . . . Allies Melted . | . . . . . . . . . . Intel | -11 -10 -10 -10 -9 -8 -8 -7 -7 -7 ------- Run | Yrd Mat Min Exi Min Mat Gar Fac Was Fac Active Infowar (turns) 947 | . . . . . . . 694 66 187 Structural 947 | . . . . . . . 694 66 187 Robot Analysis Total . | . . . . . . . . . . Derelict Logs Recovered 1 | . . . . 1 . . . . . Drone Launches . | . . . . . . . . . . Drone Recoveries . | . . . . . . . . . . Exploration | -11 -10 -10 -10 -9 -8 -8 -7 -7 -7 ------------- Run | Yrd Mat Min Exi Min Mat Gar Fac Was Fac Turns Passed 6325 | 73 689 315 345 574 282 3014 780 66 187 Spaces Moved 5046 | 54 397 174 215 309 161 1802 1594 143 197 Core 24 | 24 . . . . . . . . . Treads 2012 | 30 397 174 215 309 161 726 . . . Legs 1078 | . . . . . . 1076 2 . . Wheels . | . . . . . . . . . . Hover . | . . . . . . . . . . Flight 1932 | . . . . . . . 1592 143 197 Fastest Speed 28 | 50 160 160 160 160 160 112 28 28 28 Average Speed 99 | 119 160 160 160 160 160 133 29 28 28 Slowest Speed 330 | 160 160 160 160 160 160 330 112 28 28 Overloaded Moves . | . . . . . . . . . . Propulsion Burnouts . | . . . . . . . . . . Robots Hopped 9 | . . . . . . . 7 2 . Potential Cave-ins . | . . . . . . . . . . Cave-ins Triggered 1 | . . . . . . . 1 . . Exploration Rate (%) 44 | 4 67 30 60 63 14 87 47 63 5 Regions Visited 9 Branch Regions 3 Pre-discovered Areas . | . . . . . . . . . . Known Exits Taken 1 | . . . . . 1 . . . . Unknown Exits Taken 5 | 1 1 1 1 1 . . . . . Scrap Searched 1 | . . . . 1 . . . . . Spaces Dug 51 | . . . . . . 33 16 . 2 Terrain Destroyed 129 | . . 7 . 7 . 63 50 . 2 Melee 51 | . . . . . . 33 16 . 2 Projectile 2 | . . . . . . 2 . . . AOE 76 | . . 7 . 7 . 28 34 . . Terrain Rammed . | . . . . . . . . . . Walls Destroyed . | . . . . . . . . . . Machines Disabled . | . . . . . . . . . . Actions | -11 -10 -10 -10 -9 -8 -8 -7 -7 -7 --------- Run | Yrd Mat Min Exi Min Mat Gar Fac Was Fac Total 5862 | 60 420 189 216 344 174 2130 1838 166 325 Wait 316 | . . 1 . 5 . 43 126 24 117 Move 5020 | 53 396 173 214 308 161 1800 1580 138 197 Hop 9 | . . . . . . . 7 2 . Pick Up 27 | 1 6 3 1 2 2 1 9 . 2 Fast Attach 35 | 6 . . . 2 2 14 10 . 1 Attach 16 | . 1 . 1 . 1 1 10 . 2 Detach 2 | . . . . . . 1 1 . . Swap 13 | . . . . . . 11 2 . . Drop 38 | . . 1 . 3 2 15 16 . 1 Fire 133 | . 17 11 . 23 6 73 3 . . Melee 123 | . . . . . . 78 38 2 5 Ram . | . . . . . . . . . . Kick . | . . . . . . . . . . Crush 1 | . . . . 1 . . . . . Escape Stasis 37 | . . . . . . 1 36 . . Rewire 92 | . . . . . . 92 . . . Trap . | . . . . . . . . . . Miscellaneous . | . . . . . . . . . . Route ------- -11/Scrapyard -10/Materials (discovered 4 exits: [*Mat x3] / [*Min]) -10/Mines -10/Exiles (discovered 2 exits: [*Min x2]) -9/Mines -8/Materials -8/Garrison (discovered 4 exits: *Fac x3 / [*Mat]) -7/Factory (discovered 3 exits: *Fac x2 / *Low) -7/Waste -7/Factory History --------- Turn | Location | Event 7 | -11/Scrapyard | Discovered new exit (range 15) 74 | -11/Scrapyard | Entered Materials 184 | -10/Materials | Destroyed 7 combat bots 275 | -10/Materials | Discovered new exit (range 9) 304 | -10/Materials | Build established: Mutant 528 | -10/Materials | Discovered new exit (range 6) 567 | -10/Materials | Discovered new exit (range 15) 729 | -10/Materials | Discovered new exit (range 13) 763 | -10/Materials | Entered Mines 774 | -10/Mines | Met a Derelict bent on vengeance 968 | -10/Mines | Received a Rocket Launcher from a helpful Derelict 1071 | -10/Mines | Deemed a non-threat by the Exiles lab entrance 1071 | -10/Mines | Discovered new exit (range 5) 1078 | -10/Mines | Entered Exiles 1102 | -10/Exiles | Discovered new exit (range 15) 1118 | -10/Exiles | Met 8R-AWN 1146 | -10/Exiles | Met EX-HEX 1187 | -10/Exiles | Met EX-BIN 1208 | -10/Exiles | Aligned with FarCom system 1210 | -10/Exiles | Given EX-Vault access code 1253 | -10/Exiles | Opened EX-Vault 1271 | -10/Exiles | Found YOLO Cannon 1304 | -10/Exiles | Warned to stay clear of 0b10 Research branches 1349 | -10/Exiles | Met EX-DEC 1405 | -10/Exiles | Discovered new exit (range 12) 1423 | -10/Exiles | Left Exiles lab with YOLO Cannon 1423 | -10/Exiles | Entered Mines 1478 | -9/Mines | Core integrity fell below 50% 1520 | -9/Mines | Assisted by bots powering up and referring to "LRC-V3" 1600 | -9/Mines | Learned 2 Materials zone layouts 1621 | -9/Mines | A weapon hastily lodged in a ceiling crevice suddenly fell to the ground 1757 | -9/Mines | Found a Scrap Suit stashed away for nefarious purposes 1974 | -9/Mines | Discovered new exit (range 13) 1997 | -9/Mines | Entered Materials 1997 | -8/Materials | Accompanied by 2 allies 1997 | -8/Materials | Evolved 4 slots: Propulsion x2, Utility x2 2279 | -8/Materials | Identified exit to Garrison 2279 | -8/Materials | Entered Garrison 2279 | -8/Garrison | Accompanied by 2 allies 2333 | -8/Garrison | Triggered checkpoint 2624 | -8/Garrison | Triggered checkpoint 2629 | -8/Garrison | Triggered checkpoint 2664 | -8/Garrison | Lost 4 allies 2683 | -8/Garrison | Destroyed 7 combat bots 2731 | -8/Garrison | Triggered checkpoint 2771 | -8/Garrison | Discovered new exit (range 9) 2783 | -8/Garrison | Triggered checkpoint 2825 | -8/Garrison | Triggered checkpoint 2993 | -8/Garrison | Build established: Scavenger-Mutant 3005 | -8/Garrison | Triggered checkpoint 3101 | -8/Garrison | Triggered checkpoint 3154 | -8/Garrison | Discovered new exit (range 5) 3226 | -8/Garrison | Discovered new exit (range 10) 3259 | -8/Garrison | Triggered checkpoint 3292 | -8/Garrison | Lost 3 allies 3487 | -8/Garrison | Triggered checkpoint 3543 | -8/Garrison | Discovered new exit (range 8) 4281 | -8/Garrison | Lost 5 allies 4758 | -8/Garrison | Installed Relay Interface Framework 4812 | -8/Garrison | Garrison Relay disabled 4941 | -8/Garrison | Garrison Relay disabled 5021 | -8/Garrison | Garrison Relay disabled 5293 | -8/Garrison | Entered Factory 5293 | -7/Factory | Evolved 2 slots: Utility x2 5350 | -7/Factory | Repaired Sml. Storage Unit 5590 | -7/Factory | Build established: Scavenger-Sprinter 5658 | -7/Factory | Discovered new exit (range 4) 5659 | -7/Factory | Identified exit to Lower Caves 5748 | -7/Factory | Discovered new exit (range 5) 5749 | -7/Factory | Identified exit to Factory 5953 | -7/Factory | Crushed by falling debris 6019 | -7/Factory | Discovered exit to Factory (range 14) 6073 | -7/Factory | Manually triggered Chute Trap 6073 | -7/Factory | Sucked down chute 6073 | -7/Factory | Entered Waste 6119 | -7/Waste | Spotted C-40 Crusher 6125 | -7/Waste | Spotted C-40 Crusher 6129 | -7/Waste | Spotted C-40 Crusher 6132 | -7/Waste | Spotted C-40 Crusher 6135 | -7/Waste | Discovered new exit (range 14) 6139 | -7/Waste | Identified exit to Factory 6139 | -7/Waste | Entered Factory 6237 | -7/Factory | Fabricated Hacking Suite (x1) 6275 | -7/Factory | Fabricated Hacking Suite (x1) 6313 | -7/Factory | Fabricated Hacking Suite (x1) 6326 | -7/Factory | Self-destructed Last Messages --------------- ETC: 36 System corrupted: Substantial component data lost. Fabricator completes Hacking Suite. Connecting with Fabricator... >>Load(Hacking Suite) Authchip [Processor] confirmed. Uploading Hacking Suite schematic... Loaded successfully: Hacking Suite Rating: 3 Time: 36 Initiate build sequence. >>Build Authchip [Processor] accepted. Building Hacking Suite... ETC: 36 C8YMDPY #QRX|FOIHY5MPBF5IALTLJ0 Fabricator completes Hacking Suite. Acquired Hacking Suite. [A new version of Cogmind is available, see F1 News page.] Map ----- +----------------------------------------------------+ | ??????????????????????? # ## ##??## ##### | | ???????????????????????"# " " ## ##??## + | | ???????????????????????"# "T" ## ##??## ##### | | ???????????????????????"# """ ## ##??## ##### | | ????????????????? # ## ###?## ##?## | | ?????????????????############+##### ###### ##?## | | ?????????????? ##### ##?## | | ?????????????? ##### | | ?????????????? ########### | | ??????????????#####+############## # # | | ??????????????## ## # # # | | ???????????????????????## """ + + "" # | | ????????????????????????? """ # # "" ### | | ?????????????????????????? ""? # #""" """ ### | | ?????????????????????????? ??? # #"T """ ##? | | ???????????????????????????????? # #""" """ ##? | | ???????????????????????????????? # # ##? | | ???????????????????????????????? # ############? | | ???????????????????????????????? # # ? | | ????????????????????????????????## # ??????????? | | ?????????????????? ######## ## # ??????????? | | ??????????????????#############+## + ??????????? | | ??????????????????## # # ??????????? | | ??????????????????## """" # # ??????????? | | ??????????????????## " " """" # # ??????????? | | ??????????????????## "G" @ """" # # ??????????? | | ??????????????????## """ """" + # ??????????? | | ?????????????????### # # ??????????? | | ?????????????????##########+###### # ??????????? | | ?????????????????## ! # # ??????????? | | ?????????????????## "" # ##??????????? | | ?????????????????## F" + ##??????????? | | ????????????????? # " # ##??????????? | | ????????????????? # "" # ##??????????? | | ????????????????? # ! # ##??????????? | | ????????????????? # """"""""" # # ??????????? | | ?????????????Y??? # # # ??????????? | | ????????????????? ################ # ??????????? | | ????????????????? ################ # ??????????? | | ????????????????????????????????## # ??????????? | | ????????????????????????????????## # ??????????? | | ?????????????????????????????????? + ??????????? | | ?????????????????????????????????? # ??????????? | | ?????????????????????????????????? # ??????????? | | ?????????????????????????????????? # ??????????? | | ?????????????????????????????????? # ??????????? | | ?????????????????????????????????????????????????? | | ?????????????????????????????????????????????????? | | ?????????????????????????????????????????????????? | | ?????????????????????????????????????????????????? | +----------------------------------------------------+ Best States ------------- Heat Dissipation 48 Energy Generation 14 Energy Capacity 275 Matter Stores 300 Matter Capacity 300 Sight Range 16 Terrain Scan Density 10 Armor Coverage 300 Resistance: KI 20 Resistance: TH 20 Resistance: EX 20 Resistance: EM 20 Resistance: I 20 Resistance: S 20 Resistance: P 20 Evasion (%) 64 Recoil Reduction 4 Offensive Hacking 20 Relay Coupler Types 1 Relay Coupler Value 33 Authchip Count 3 Item Schematics ----------------- Hacking Suite | -8/Materials | Hacked Robot Schematics ------------------ None Fabricated ------------ Hacking Suite | x1 | -7/Factory | Authchip Hacking Suite | x1 | -7/Factory | Authchip Hacking Suite | x1 | -7/Factory | Authchip Repaired ---------- Sml. Storage Unit | 35% | -7/Factory Alien Tech Used ----------------- None Achievements -------------- None Challenges ------------ None Game ------ Seed WardroneCorruptionShotgun Manual? 0 Play Time 00:41:31 Cumulative 119.5 hours Start 2025.05.11 @ 18:37:45 End 2025.05.11 @ 23:17:46 Sessions 3 Manual Loads 0 Difficulty Adventurer Special Mode None Game No. 135 Rogue 18 Adventurer 106 Explorer 11 Win Type - Total 26 Types 8/0/10/0/3/0/4/1/0/0 Lore% 38 Gallery% 38 Achievement% 62 Wizard Run 0 Options --------- Layout 0 ASCII 0 Keyboard 0 Movement Mouse Keybinds 0 Fullscreen 2 Font 12/Smallcaps Map View 83x54 Zoom Use 0% Tactical HUD 0 Map Filters NONE Filters NONE Steam 1 RUN: 4c74b9d9-423d-4cf3-bf7c-e2b6ca0bb4c1